bitfinex-derivatives/quotes_SOLF0:USTF0_20241120
["timestamp","ask_amount","ask_price","bid_price","bid_amount"]
[1732131078656,6.8390596,232.05,231.97,9.1919196]
[1732131079264,1.5721,232.11,232.01,6.8390596]
[1732131079459,6.8390596,232.1,232.03,6.8390596]
[1732131079961,2.1527,232.07,232.03,6.8390596]
[1732131080164,1.5721,232.11,232.03,6.8390596]
[1732131080361,2.1526,232.08,232.05,6.8390596]
[1732131081065,2.1524,232.1,232.05,8.9917596]
[1732131081262,1.5521,232.12,232.09,6.8390596]
[1732131081570,8.4235596,232.14,232.07,6.8390596]
[1732131081773,2.1523,232.11,232.07,8.9916596]
[1732131082273,2.1523,232.11,232.07,6.8390596]
[1732131082870,2.1523,232.11,232.05,2.1527]
[1732131083065,2.1523,232.11,232.03,10.68731581]
[1732131083274,1.5845,232.14,232.03,10.68731581]
[1732131083473,2.1521,232.13,232.08,2.1525]
[1732131083668,1.33529173,232.16,232.09,10.68731581]
[1732131083969,1.33529173,232.16,232.08,2.78]
[1732131084266,2.1519,232.15,232.09,2.1524]
[1732131084472,10.68731581,232.14,231.98,7.06400248]
[1732131084663,10.68731581,232.14,231.99,12.26531581]
[1732131085064,2.1526,232.08,231.99,12.26531581]
[1732131085461,2.1526,232.08,232.01,2.1531]
[1732131085661,2.1526,232.08,231.99,12.26531581]
[1732131085860,2.1525,232.1,231.99,12.26531581]
[1732131086177,10.68731581,232.14,232.03,2.153]
[1732131087369,2.1525,232.09,232.03,2.153]
[1732131087672,10.68731581,232.14,231.99,12.26531581]
[1732131087868,2.1526,232.08,232.02,2.1531]
[1732131088070,10.68731581,232.08,231.96,10.68731581]
[1732131088274,2.1533,232.0,231.95,2.78]
[1732131088575,1.4457,232.07,231.91,2.78]
[1732131088576,10.68731581,232.05,231.91,2.78]
[1732131088771,2.1535,231.98,231.92,2.154]
[1732131089173,10.68731581,232.05,231.99,84.62707]
[1732131089474,4.4869,232.07,232.0,3.42910187]
[1732131089670,4.4869,232.07,231.99,84.62707]
[1732131089878,3.0303,232.07,232.0,3.42904383]
[1732131090071,3.0303,232.07,232.01,3.42904383]
[1732131090267,3.0303,232.07,232.02,3.42904383]
[1732131090468,3.0303,232.07,231.99,84.62707]
[1732131090771,3.0303,232.07,232.0,3.42880438]
[1732131090974,1.4457,232.07,232.01,3.42880438]
[1732131091172,1.4457,232.07,232.02,3.42880438]
[1732131091372,2.1528,232.05,232.03,3.42882053]
[1732131091571,2.1528,232.05,231.99,95.31438581]
[1732131091776,1.4457,232.07,232.0,3.42883397]
[1732131092070,1.5109,232.14,232.02,10.68731581]
[1732131092276,1.5109,232.14,232.03,6.20863254]
[1732131092475,1.5109,232.14,232.04,3.42863254]
[1732131092670,1.5109,232.14,232.05,14.11594835]
[1732131092868,1.5109,232.14,232.06,3.42863254]
[1732131093069,1.5109,232.14,232.07,3.42863254]
[1732131093469,2.1522,232.12,232.08,3.42863254]
[1732131093667,1.5109,232.14,232.09,3.42810144]
[1732131093871,1.5109,232.14,232.05,10.68731581]
[1732131094069,1.5109,232.14,232.06,3.4280164]
[1732131094266,1.5155,232.18,232.07,3.4280164]
[1732131094470,1.5155,232.18,232.08,14.11533221]
[1732131094666,2.1521,232.13,232.09,8.3604164]
[1732131094866,2.1521,232.13,232.09,2.78]
[1732131095177,2.1521,232.13,232.1,3.42810959]
[1732131095365,2.1521,232.13,232.09,2.78]
[1732131095773,2.1522,232.12,232.1,3.42809248]
[1732131095977,12.20281581,232.18,232.09,2.78]
[1732131096282,12.20281581,232.18,232.1,3.42812866]
[1732131096479,2.1523,232.12,232.09,2.78]
[1732131096678,12.20281581,232.18,232.1,3.42803228]
[1732131096879,12.20281581,232.18,232.09,2.78]
[1732131097081,12.20281581,232.18,232.1,3.42812582]
[1732131097372,2.152,232.14,232.09,2.78]
[1732131097581,12.20281581,232.18,232.09,2.78]
[1732131097978,2.1523,232.11,232.09,2.78]
[1732131098378,2.1523,232.11,232.05,10.68731581]
[1732131098681,10.68731581,232.15,232.06,3.42830259]
[1732131098982,10.68731581,232.15,232.07,3.42830259]
[1732131099176,10.68731581,232.15,232.08,3.42830259]
[1732131099372,10.68731581,232.15,232.0,14.98271581]
[1732131099574,2.1526,232.08,232.04,2.1529]
[1732131099778,2.1526,232.08,232.05,3.42859562]
[1732131099974,2.1526,232.08,232.06,3.42859562]
[1732131100170,2.1526,232.08,232.07,3.42859562]
[1732131101482,12.20281581,232.18,232.07,3.42859562]
[1732131101776,12.20281581,232.18,232.07,2.1526]
[1732131101977,1.5155,232.18,232.08,3.42879417]
[1732131102294,12.20281581,232.18,232.09,3.42879417]
[1732131102487,12.20281581,232.18,232.06,2.78]
[1732131102784,2.1525,232.08,232.07,3.42888309]
[1732131106377,2.1525,232.09,232.07,3.42888309]
[1732131106581,2.1525,232.09,232.08,3.42888309]
[1732131106775,12.20281581,232.18,232.08,3.42888309]
[1732131106776,1.5155,232.18,232.08,3.42888309]
[1732131106985,2.1521,232.13,232.08,2.78]
[1732131107182,1.5155,232.18,232.09,3.42933704]
[1732131107380,1.5155,232.18,232.08,2.78]
[1732131107583,1.5155,232.18,232.09,3.42940895]
[1732131107782,2.152,232.14,232.08,4.9325]
[1732131108088,1.5155,232.18,232.09,3.42938535]
[1732131108284,2.1521,232.14,232.09,2.1525]
[1732131108477,2.1521,232.14,232.1,3.42943248]
[1732131108681,2.1521,232.14,232.09,2.1525]
[1732131108881,2.1521,232.14,232.1,3.42946773]
[1732131109084,2.1521,232.14,232.09,2.1525]
[1732131109290,2.1521,232.14,232.1,3.42945543]
[1732131109480,2.1521,232.13,232.09,2.1525]
[1732131109679,2.1521,232.13,232.1,3.42956949]
[1732131109879,2.1521,232.13,232.09,2.1525]
[1732131110180,2.152,232.15,232.11,12.83961581]
[1732131110488,2.152,232.15,232.12,3.42956949]
[1732131110787,2.152,232.15,232.13,3.42956949]
[1732131110983,2.152,232.15,232.11,12.83961581]
[1732131111186,2.152,232.15,232.12,3.42921605]
[1732131111485,2.152,232.15,232.11,12.83961581]
[1732131111684,2.152,232.15,232.12,3.42883577]
[1732131111886,2.152,232.15,232.11,12.83961581]
[1732131112180,2.152,232.15,232.12,3.4288246]
[1732131112385,2.152,232.15,232.11,12.83961581]
[1732131112593,2.152,232.15,232.12,3.42850575]
[1732131112890,2.152,232.15,232.11,10.68731581]
[1732131113091,3.8076225,232.17,232.12,3.42850073]
[1732131113288,3.8076225,232.17,232.13,3.42850073]
[1732131113591,1.6558225,232.17,232.14,12.83931581]
[1732131113789,1.6558225,232.17,232.15,3.42755929]
[1732131114892,1.6558225,232.17,232.12,10.68731581]
[1732131115187,1.6558225,232.17,232.13,3.42645637]
[1732131115381,1.6558225,232.17,232.14,3.42645637]
[1732131115789,1.6558225,232.17,232.15,3.42645637]
[1732131115990,1.6558225,232.17,232.15,6.20645637]
[1732131116789,1.6558225,232.17,232.15,2.78]
[1732131117587,1.6558225,232.17,232.15,4.9319]
[1732131118589,1.6558225,232.17,232.15,2.1519]
[1732131118893,1.6558225,232.17,232.15,19.04226229]
[1732131121095,1.6558225,232.17,232.15,16.89036229]
[1732131121302,1.6558225,232.17,232.15,13.46731581]
[1732131121691,1.6558225,232.17,232.15,19.04052694]
[1732131124797,1.6558225,232.17,232.15,15.18656987]
[1732131125096,1.6558225,232.17,232.16,2.1518]
[1732131125288,1.6558225,232.17,232.16,5.57311113]
[1732131125690,1.47773423,232.19,232.16,3.42131113]
[1732131125892,1.47773423,232.19,232.18,8.98495874]
[1732131126198,2.16744735,232.2,232.18,8.98495874]
[1732131126199,1.96124,232.28,232.18,10.25466987]
[1732131126399,2.61445757,232.27,232.23,6.83335874]
[1732131126601,2.61445757,232.27,232.23,9.61335874]
[1732131127499,2.61445757,232.27,232.23,13.02740095]
[1732131127696,2.61445757,232.27,232.23,13.02738317]
[1732131128003,2.61445757,232.27,232.23,9.61335874]
[1732131128196,2.61445757,232.27,232.23,11.76455874]
[1732131128495,2.61445757,232.27,232.23,2.78]
[1732131128701,2.61445757,232.27,232.23,9.61335874]
[1732131128702,0.46355757,232.27,232.23,9.61335874]
[1732131128899,0.46355757,232.27,232.23,11.76455874]
[1732131129402,0.46355757,232.27,232.26,2.1509]
[1732131129602,0.46355757,232.27,232.26,8.98425874]
[1732131130401,0.46355757,232.27,232.23,6.83335874]
[1732131130700,0.46355757,232.27,232.2,10.67293712]
[1732131131300,0.46355757,232.27,232.26,10.67293712]
[1732131131800,0.46355757,232.27,232.26,2.1509]
[1732131132005,0.46355757,232.27,232.25,2.78]
[1732131134105,0.46355757,232.27,232.26,12.82383712]
[1732131134699,0.46355757,232.27,232.26,2.1509]
[1732131137903,0.46355757,232.27,232.25,2.78]
[1732131138201,0.46355757,232.27,232.23,2.78]
[1732131138507,0.46355757,232.27,232.23,4.9311]
[1732131139214,0.46355757,232.27,232.23,2.78]
[1732131139708,0.46355757,232.27,232.23,2.1511]
[1732131139911,0.46355757,232.27,232.26,10.67293712]
[1732131140409,0.46355757,232.27,232.26,12.82383712]
[1732131140607,0.49002293,232.31,232.26,10.67293712]
[1732131140801,0.49299137,232.41,232.3,10.67293712]
[1732131140802,1.329,232.4,232.3,10.67293712]
[1732131141002,1.329,232.4,232.31,2.78]
[1732131141209,1.329,232.4,232.33,10.67293712]
[1732131142004,3.4787,232.4,232.33,12.82313712]
[1732131142209,1.329,232.4,232.33,12.82313712]
[1732131143514,1.329,232.4,232.36,2.15]
[1732131144110,1.329,232.4,232.36,12.82293712]
[1732131146607,0.49299137,232.41,232.36,12.82293712]
[1732131147511,0.49299137,232.41,232.37,2.1499]
[1732131148509,2.64259137,232.41,232.36,10.67293712]
[1732131148916,0.49299137,232.41,232.36,10.67293712]
[1732131150411,0.49299137,232.41,232.37,2.1499]
[1732131150617,0.49299137,232.41,232.37,2.76]
[1732131150813,0.49299137,232.41,232.4,8.96890805]
[1732131152912,0.5006254,232.45,232.42,2.1494]
[1732131153115,0.5006254,232.45,232.44,6.81930805]
[1732131155113,0.5006254,232.45,232.4,6.81930805]
[1732131155319,0.5006254,232.45,232.42,6.81930805]
[1732131155522,2.1493,232.44,232.42,6.81930805]
[1732131155718,2.1493,232.44,232.42,4.80760805]
[1732131156018,2.1492,232.44,232.42,4.80760805]
[1732131156613,2.6497254,232.45,232.42,4.80760805]
[1732131157516,2.1493,232.44,232.42,4.80760805]
[1732131158120,2.1493,232.44,232.4,6.81930805]
[1732131158414,2.6498254,232.45,232.4,6.81930805]
[1732131158616,2.6498254,232.45,232.42,6.81930805]
[1732131159422,2.1492,232.44,232.42,6.81930805]
[1732131160025,2.1492,232.44,232.4,8.96880805]
[1732131160913,2.1492,232.44,232.42,6.81930805]
[1732131161824,2.6498254,232.45,232.42,6.81930805]
[1732131166228,0.5006254,232.45,232.42,6.81930805]
[1732131167924,0.5006254,232.45,232.38,6.81930805]
[1732131168121,6.81930805,232.44,232.38,6.81930805]
[1732131168726,2.1496,232.4,232.38,6.81930805]
[1732131168921,0.5006254,232.45,232.23,52.0487199]
[1732131169128,6.81930805,232.37,232.31,6.81930805]
[1732131169524,6.81930805,232.35,232.21,5.96830248]
[1732131169718,6.81930805,232.35,232.2,1.226]
[1732131169719,2.1505,232.3,232.27,6.81930805]
[1732131169925,2.1505,232.3,232.28,3.4076198]
[1732131170117,2.1505,232.3,232.27,6.81930805]
[1732131170418,2.1504,232.31,232.27,6.81930805]
[1732131170623,6.81930805,232.3,232.28,3.40935339]
[1732131170917,2.1516,232.19,232.11,1.2579]
[1732131171117,6.81930805,232.26,232.17,6.81930805]
[1732131171319,2.76,232.27,232.2,6.81930805]
[1732131171527,9.57930805,232.28,232.2,6.81930805]
[1732131171825,6.81930805,232.26,232.2,6.81930805]
[1732131172123,6.81930805,232.24,232.13,2.76]
[1732131172626,2.1511,232.24,232.15,2.1519]
[1732131172824,2.76,232.27,232.16,10.67913103]
[1732131173324,2.76,232.27,232.16,12.83093103]
[1732131173526,2.76,232.27,232.16,10.67913103]
[1732131174225,2.76,232.3,232.16,10.67913103]
[1732131174727,2.1508,232.27,232.22,2.1513]
[1732131175227,1.3227,232.31,232.19,10.67913103]
[1732131175625,1.3227,232.31,232.24,2.1511]
[1732131175925,1.3227,232.31,232.22,10.67913103]
[1732131176131,1.3227,232.31,232.26,2.1509]
[1732131176328,51.65653563,232.32,232.25,10.67913103]
[1732131177930,51.65653563,232.32,232.28,2.1507]
[1732131178122,51.65653563,232.32,232.28,12.82983103]
[1732131178326,51.65653563,232.32,232.28,10.67913103]
[1732131178527,51.65653563,232.32,232.25,13.43913103]
[1732131180126,11.93533103,232.4,232.25,13.43913103]
[1732131180734,2.1502,232.34,232.27,2.1508]
[1732131180924,11.93533103,232.4,232.27,2.1508]
[1732131181432,2.15,232.37,232.27,2.1508]
[1732131181735,2.15,232.37,232.25,13.43913103]
[1732131181736,11.93533103,232.4,232.28,2.1507]
[1732131182340,11.93533103,232.4,232.25,13.43913103]
[1732131182734,11.93533103,232.4,232.28,10.67913103]
[1732131183036,2.15,232.36,232.3,2.1504]
[1732131184538,10.67913103,232.37,232.25,15.59003103]
[1732131184740,10.67913103,232.37,232.25,2.76]
[1732131184937,10.67913103,232.37,232.22,10.67913103]
[1732131184938,10.67913103,232.34,232.22,13.43913103]
[1732131185141,2.76,232.36,232.22,13.43913103]
[1732131185733,10.67913103,232.37,232.22,13.43913103]
[1732131185734,1.2562,232.4,232.22,13.43913103]
[1732131185938,10.67913103,232.38,232.22,13.43913103]
[1732131186341,2.1502,232.34,232.26,2.1509]
[1732131186539,10.67913103,232.38,232.26,2.1509]
[1732131187039,10.67913103,232.38,232.22,13.43913103]
[1732131187541,2.1503,232.33,232.22,13.43913103]
[1732131187740,10.67913103,232.38,232.22,13.43913103]
[1732131188142,10.67913103,232.38,232.27,2.1508]
[1732131188340,10.67913103,232.38,232.22,13.43913103]
[1732131188640,10.67913103,232.38,232.26,2.1509]
[1732131189243,10.67913103,232.38,232.27,2.1508]
[1732131189443,10.67913103,232.38,232.25,10.67913103]
[1732131189640,2.1503,232.33,232.25,10.67913103]
[1732131190144,2.1503,232.33,232.27,2.1508]
[1732131190345,10.67913103,232.38,232.22,13.43913103]
[1732131190638,10.67913103,232.38,232.26,2.1509]
[1732131190840,10.67913103,232.38,232.22,13.43913103]
[1732131190841,2.1503,232.33,232.22,13.43913103]
[1732131191237,10.67913103,232.38,232.22,13.43913103]
[1732131191543,2.1504,232.32,232.26,2.1508]
[1732131192737,2.1504,232.32,232.23,2.76]
[1732131192944,10.67913103,232.38,232.25,10.67913103]
[1732131193441,10.67913103,232.38,232.16,2.6085]
[1732131193442,10.67913103,232.32,232.16,2.6085]
[1732131193643,10.67913103,232.29,232.16,2.6085]
[1732131193939,2.1513,232.23,232.17,2.1516]
[1732131194144,13.43913103,232.29,232.17,2.1516]
[1732131194348,13.43913103,232.29,232.16,1.3268]
[1732131195145,2.1512,232.23,232.18,2.1516]
[1732131195346,13.43913103,232.29,232.15,12.01443103]
[1732131195546,2.1516,232.19,232.14,2.152]
[1732131195742,10.67913103,232.26,232.1,2.76]
[1732131196137,10.67913103,232.23,232.08,2.76]
[1732131196345,1.2719,232.22,232.08,2.76]
[1732131196544,2.1519,232.15,232.08,4.9125]
[1732131196745,2.1519,232.15,232.08,2.76]
[1732131196945,10.67913103,232.2,232.08,2.76]
[1732131197142,10.67913103,232.2,232.07,2.6383]
[1732131197445,10.67913103,232.17,232.04,2.76]
[1732131197648,2.1522,232.13,232.07,2.1526]
[1732131197842,1.3285,232.19,232.06,10.67913103]
[1732131198148,1.3285,232.19,232.06,13.43913103]
[1732131198345,1.2719,232.22,232.12,10.67913103]
[1732131198642,11.95103103,232.22,232.09,10.67913103]
[1732131198844,2.1515,232.2,232.13,2.1521]
[1732131199150,1.2719,232.22,232.09,10.67913103]
[1732131199347,2.1516,232.19,232.11,2.1522]
[1732131199546,2.1516,232.19,232.09,10.67913103]
[1732131199742,11.95103103,232.22,232.09,10.67913103]
[1732131199942,2.1516,232.18,232.11,2.1523]
[1732131200343,2.1516,232.18,232.12,2.1522]
[1732131200543,1.2719,232.22,232.09,10.67913103]
[1732131201048,2.1515,232.2,232.13,2.1521]
[1732131201241,1.2719,232.22,232.13,2.1521]
[1732131201445,1.2719,232.22,232.12,2.1522]
[1732131201640,1.2719,232.22,232.09,10.67913103]
[1732131202053,2.1518,232.16,232.09,10.67913103]
[1732131202352,2.1518,232.16,232.03,10.67913103]
[1732131202353,13.43913103,232.16,232.03,10.67913103]
[1732131202563,13.43913103,232.16,232.01,2.6182]
[1732131203247,2.76,232.16,232.03,10.67913103]
[1732131203646,1.2719,232.22,232.06,10.67913103]
[1732131203647,2.76,232.21,232.06,10.67913103]
[1732131203847,2.76,232.21,232.09,10.67913103]
[1732131204444,11.95103103,232.22,232.09,10.67913103]
[1732131204750,1.2719,232.22,232.12,10.67913103]
[1732131204950,2.1515,232.19,232.12,12.83123103]
[1732131205351,1.2719,232.22,232.12,12.83123103]
[1732131205741,2.1515,232.19,232.12,12.83123103]
[1732131205945,11.95103103,232.22,232.09,10.67913103]
[1732131206151,2.1517,232.18,232.09,10.67913103]
[1732131206448,11.95103103,232.22,232.09,10.67913103]
[1732131206847,2.1519,232.15,232.08,2.76]
[1732131207149,13.43913103,232.19,232.03,13.43913103]
[1732131207450,13.43913103,232.19,232.09,10.67913103]
[1732131207451,2.76,232.19,232.09,10.67913103]
[1732131207647,2.76,232.19,232.06,10.67913103]
[1732131207852,2.1521,232.14,232.08,2.1525]
[1732131208151,2.76,232.19,232.06,10.67913103]
[1732131208345,14.71103103,232.22,232.09,10.67913103]
[1732131208550,2.1518,232.16,232.1,2.1523]
[1732131209049,14.71103103,232.22,232.14,2.1519]
[1732131209050,2.1515,232.2,232.14,2.1519]
[1732131209249,2.76,232.24,232.14,2.1519]
[1732131209652,2.76,232.24,232.13,2.1521]
[1732131210251,2.1513,232.22,232.14,2.152]
[1732131210950,2.1512,232.23,232.15,2.1519]
[1732131211343,11.98053103,232.28,232.21,2.1513]
[1732131211548,1.3014,232.28,232.18,2.76]
[1732131211748,3.3602,232.29,232.19,10.67913103]
[1732131211749,1.2095,232.29,232.19,10.67913103]
[1732131211945,1.2095,232.29,232.22,2.1513]
[1732131212150,1.2095,232.29,232.19,10.67913103]
[1732131212547,1.2095,232.29,232.23,2.1511]
[1732131213155,3.397,232.3,232.19,10.67913103]
[1732131213156,1.2465,232.3,232.19,10.67913103]
[1732131213353,51.65940937,232.31,232.22,10.67913103]
[1732131213653,10.67913103,232.34,232.26,2.1509]
[1732131214649,10.67913103,232.34,232.27,2.1507]
[1732131215046,13.19843103,232.37,232.24,2.76]
[1732131215251,2.5193,232.37,232.25,10.67913103]
[1732131215652,2.76,232.38,232.25,10.67913103]
[1732131216153,2.15,232.36,232.3,2.1504]
[1732131216350,2.76,232.38,232.25,10.67913103]
[1732131216753,2.1499,232.37,232.25,10.67913103]
[1732131217256,2.1499,232.37,232.32,2.1503]
[1732131217457,2.76,232.38,232.25,10.67913103]
[1732131217649,2.15,232.36,232.25,10.67913103]
[1732131217849,2.15,232.36,232.3,2.1505]
[1732131218056,2.1501,232.34,232.24,2.76]
[1732131218361,10.67913103,232.37,232.3,2.1505]
[1732131218547,10.67913103,232.37,232.24,2.76]
[1732131218752,2.15,232.36,232.25,10.67913103]
[1732131219057,10.67913103,232.37,232.25,10.67913103]
[1732131219453,10.67913103,232.37,232.28,2.1507]
[1732131219651,2.1502,232.34,232.25,2.76]
[1732131220760,10.67913103,232.34,232.25,2.76]
[1732131220960,10.67913103,232.34,232.21,1.3219]
[1732131221154,2.1507,232.29,232.21,4.0819]
[1732131221458,2.1507,232.29,232.23,2.1511]
[1732131221663,13.43913103,232.31,232.15,10.67913103]
[1732131221854,10.67913103,232.28,232.17,2.1516]
[1732131222056,10.67913103,232.28,232.12,13.24933103]
[1732131222259,2.1512,232.23,232.12,13.24933103]
[1732131222454,10.67913103,232.28,232.12,13.24933103]
[1732131222858,2.1512,232.23,232.17,2.1517]
[1732131223058,10.67913103,232.25,232.12,16.00933103]
[1732131223460,2.1514,232.2,232.15,2.1519]
[1732131223661,2.1514,232.2,232.12,16.00933103]
[1732131224060,13.43913103,232.25,232.12,16.00933103]
[1732131224362,2.76,232.25,232.12,16.00933103]
[1732131224961,2.1513,232.22,232.16,2.1517]
[1732131225158,13.43913103,232.25,232.12,16.00933103]
[1732131225359,2.76,232.25,232.12,16.00933103]
[1732131225564,2.76,232.25,232.17,2.1516]
[1732131225565,2.1512,232.23,232.17,2.1516]
[1732131226665,2.1513,232.22,232.16,2.1518]
[1732131227060,2.1513,232.21,232.16,2.1518]
[1732131227264,10.67913103,232.23,232.12,4.0318]
[1732131227469,10.67913103,232.23,232.15,2.1519]
[1732131227662,10.67913103,232.23,232.12,4.0318]
[1732131227862,2.1515,232.2,232.12,1.2718]
[1732131228058,2.1515,232.2,232.13,2.152]
[1732131228259,10.67913103,232.23,232.11,1.2855]
[1732131228767,1.2614,232.24,232.12,10.67913103]
[1732131229258,1.2614,232.24,232.11,1.2855]
[1732131229467,1.3224,232.3,232.15,10.67913103]
[1732131229468,13.43913103,232.29,232.15,10.67913103]
[1732131229767,13.43913103,232.29,232.16,2.76]
[1732131229961,1.3092,232.31,232.21,10.67913103]
[1732131230163,10.67913103,232.35,232.22,2.76]
[1732131230366,2.1503,232.33,232.25,2.1509]
[1732131230563,2.1503,232.33,232.22,2.76]
[1732131231467,2.1503,232.33,232.25,2.1509]
[1732131231660,10.67913103,232.35,232.22,2.76]
[1732131231858,2.1503,232.32,232.22,2.76]
[1732131232669,2.1503,232.32,232.25,2.151]
[1732131232871,2.1503,232.32,232.22,2.76]
[1732131233368,2.1503,232.32,232.25,2.151]
[1732131233572,2.1503,232.32,232.22,2.76]
[1732131233766,10.67913103,232.35,232.22,2.76]
[1732131233961,10.67913103,232.32,232.22,4.9112]
[1732131234167,10.67913103,232.32,232.22,2.76]
[1732131234579,2.1506,232.29,232.23,2.1511]
[1732131234879,10.67913103,232.32,232.19,2.76]
[1732131235185,13.43913103,232.32,232.21,2.1513]
[1732131235573,2.151,232.26,232.21,2.1513]
[1732131235780,2.151,232.26,232.18,10.67913103]
[1732131235781,10.67913103,232.29,232.18,2.1515]
[1732131235977,10.67913103,232.26,232.15,2.76]
[1732131236182,1.2115,232.25,232.15,2.76]
[1732131236385,2.456,232.25,232.15,2.76]
[1732131236777,2.1513,232.21,232.16,2.1517]
[1732131236977,2.456,232.25,232.15,2.76]
[1732131237278,2.1515,232.19,232.14,2.152]
[1732131237476,2.1515,232.19,232.09,15.98993103]
[1732131237672,10.67913103,232.23,232.09,15.98993103]
[1732131237877,2.1515,232.2,232.09,15.98993103]
[1732131238287,10.67913103,232.23,232.09,15.98993103]
[1732131238478,2.1515,232.19,232.14,2.1519]
[1732131238982,2.1515,232.2,232.14,2.1519]
[1732131239285,1.2536,232.24,232.12,10.67913103]
[1732131240274,2.1514,232.21,232.12,10.67913103]
[1732131240881,2.1514,232.21,232.17,2.1517]
[1732131241386,1.2536,232.24,232.12,10.67913103]
[1732131241586,2.1514,232.2,232.15,2.1518]
[1732131242486,2.1514,232.21,232.15,2.1518]
[1732131242985,2.1514,232.21,232.09,14.70613103]
[1732131243186,2.1514,232.21,232.16,2.1518]
[1732131243589,2.1513,232.22,232.17,2.1516]
[1732131243795,2.1513,232.22,232.12,10.67913103]
[1732131244112,1.2536,232.24,232.12,10.67913103]
[1732131244318,2.1514,232.21,232.16,2.1517]
[1732131244613,1.2536,232.24,232.12,10.67913103]
[1732131245205,2.456,232.25,232.15,10.67913103]
[1732131245415,2.456,232.25,232.15,13.43913103]
[1732131246007,1.2115,232.25,232.22,2.1512]
[1732131246217,2.1509,232.27,232.22,2.1512]
[1732131246409,10.67913103,232.32,232.18,10.67913103]
[1732131247309,2.5135,232.33,232.21,10.67913103]
[1732131247509,1.2342,232.34,232.22,2.76]
[1732131247905,1.2342,232.34,232.27,2.1507]
[1732131248113,1.2342,232.34,232.22,2.76]
[1732131248315,2.1502,232.33,232.25,2.1509]
[1732131248512,2.1502,232.33,232.22,2.76]
[1732131249809,2.1502,232.33,232.28,2.1507]
[1732131250418,1.2342,232.34,232.22,2.76]
[1732131250615,2.1503,232.33,232.27,2.1508]
[1732131250808,1.2342,232.34,232.22,2.76]
[1732131251220,2.1503,232.33,232.28,2.1506]
[1732131251421,10.67913103,232.38,232.24,10.67913103]
[1732131251822,2.1501,232.34,232.29,2.1505]
[1732131252125,2.1501,232.34,232.24,10.67913103]
[1732131252518,2.1501,232.35,232.29,2.1505]
[1732131253014,2.1501,232.35,232.3,2.1505]
[1732131255025,14.71003103,232.41,232.27,10.67913103]
[1732131255226,14.71003103,232.41,232.28,2.74]
[1732131256421,2.1499,232.37,232.32,2.1503]
[1732131257327,14.71003103,232.41,232.28,2.74]
[1732131258024,2.1499,232.37,232.32,2.1502]
[1732131259121,14.71003103,232.41,232.32,2.1502]
[1732131259318,2.1498,232.38,232.32,2.1502]
[1732131259827,2.1499,232.37,232.32,2.1502]
[1732131261129,14.71003103,232.41,232.28,2.74]
[1732131261315,2.1498,232.38,232.33,2.1502]
[1732131262024,14.71003103,232.41,232.33,2.1502]
[1732131262225,10.67913103,232.38,232.28,2.74]
[1732131262821,2.15,232.36,232.31,2.1503]
[1732131263027,14.71003103,232.41,232.28,2.74]
[1732131263429,14.71003103,232.41,232.31,2.1504]
[1732131263819,14.71003103,232.41,232.28,2.74]
[1732131264117,2.1499,232.37,232.32,2.1503]
[1732131266221,2.1499,232.37,232.33,2.1502]
[1732131266433,14.71003103,232.41,232.28,2.74]
[1732131266434,11.97003103,232.41,232.28,2.74]
[1732131266629,2.1498,232.38,232.28,2.74]
[1732131267224,2.1498,232.38,232.33,2.1501]
[1732131267414,11.97003103,232.41,232.28,2.74]
[1732131268227,2.1498,232.38,232.33,2.1502]
[1732131268417,11.97003103,232.41,232.28,2.74]
[1732131269418,2.1497,232.39,232.34,2.1501]
[1732131270108,11.97003103,232.41,232.28,2.74]
[1732131270298,11.97003103,232.41,232.22,86.4075]
[1732131270299,10.67913103,232.32,232.22,86.4075]
[1732131270504,2.74,232.31,232.22,86.4075]
[1732131271404,10.67913103,232.35,232.26,2.1509]
[1732131271807,10.67913103,232.35,232.22,86.4075]
[1732131272009,2.1503,232.32,232.27,2.1508]
[1732131272705,2.15,232.36,232.26,10.67913103]
[1732131273101,11.97003103,232.41,232.26,13.41913103]
[1732131273303,2.1498,232.38,232.33,2.1502]
[1732131273708,4.0309,232.41,232.29,10.67913103]